{"text_format":"1","workbook":"xlsx","n_sheets":3,"sheets":["Лист1","Лист2","Лист3"],"not_rendered":{"charts":0,"images":1,"macros":1,"external_links":0,"defined_names":1,"comments":0,"pivot_tables":0},"unopened":[],"bounds":{"document_bytes":16777216,"sheet_cells":100000,"rows_first":2000,"rows_last":500,"rows_between":2000,"halvings":0,"cell_chars":16384,"cell_head_chars":4096},"cells_cut":0,"cells_raw":0,"read":"whole","date_system":"1900"}

{"sheet":"Лист1","index":0,"n_rows":100,"n_cols":10,"rows_kept":100,"cut":false,"hidden":false,"merged":[[33,1,33,3],[1,1,1,3]]}
["Цех","Служба","Выполняемые работы ","Начало","Продолжительность (дни)","% за день","% общий ","Примечание"]
[{"$f":"IF(B2=\"\",\"\",\"1\")","v":"1"},"Перспективные работы (первоочередные работы)"]
["1","Служба добычи газа",null,"2015-12-30",null,null,null,null,null,"Пер1"]
["1","Служба добычи газа",1,"21.12.15",11,null,null,null,null,"Пер1"]
["1","Служба добычи газа",112,"21.12.15",112,null,null,null,null,"Пер1"]
["1","Служба добычи газа",112,"21.12.15",113,null,null,null,null,"Пер1"]
["1","Служба добычи газа",0,"21.12.15",0,null,0.5,null,null,"Пер1"]
["1","Служба добычи газа",1,"21.12.15",1,null,null,"hk",null,"Пер1"]
["1","Служба добычи газа","Пук","21.12.15",10,null,0.2,null,null,"Пер1"]
["1","Служба добычи газа","Пук2","21.12.15","56 дней",null,null,null,null,"Пер1"]
["1","Служба добычи газа","qwertyu","21.12.15","qwerty",null,null,null,null,"Пер1"]
["1","Служба добычи газа","шесть","29.12.15",66,null,null,null,null,"Пер1"]
["1","Служба добычи газа",44,"22.12.15",44,null,null,null,null,"Пер1"]
["1","Служба КИПиА",null,"2015-12-09",null,null,0.5,null,null,"Пер1"]
["1","Служба КИПиА",null,"2015-12-19",null,null,null,null,null,"Пер1"]
["1","Служба КИПиА",null,"15.12.15",null,null,null,null,null,"Пер1"]
["1","Служба КИПиА",null,"15.12.15",null,null,null,null,null,"Пер1"]
["1","Служба КИПиА",null,"18.12.15",null,null,0.88,null,null,"Пер1"]
["1","Служба КИПиА","ачрчпр","30.12.15","арпар",null,null,null,null,"Пер1"]
["1","Служба КИПиА","sdfsdgdghdf","30.12.15",78,null,null,null,null,"Пер1"]
["1","Служба КИПиА",null,"22.12.15",null,null,null,null,null,"Пер1"]
["1","Служба механика",null,"2015-12-19",null,null,null,null,null,"Пер1"]
["1","Служба подготовки газа","явпвп","2015-12-17","выапЫ",null,null,null,null,"Пер1"]
["1","Служба подготовки газа","фык","15.12.15",45,null,null,null,null,"Пер1"]
["1","Служба подготовки газа","Техническое обслуживание системы газового анализа УКПГ (т/ц 1-4 датчиков Щит 2, датчиков котельной СГОЭС (метан),  датчиков котельной СГС-902, гараж спецтехники СОУ-1, Насосная промстоков  СТМ 30-54, ДКС СГОЭС, техническое обслуживание сетей газораспределения и газопотребления ГРУ котельной, ГРП водоподогревателей, газовая обвязка котельной , газовая обвязка водоподогревателей. Техническое обслуживание систем пожарной сигнализации  УКПГ и ДКС. Техническое обслуживание влагомеров БАЙКАЛ-2 (2М), проверка автоматики безопасности подогревателей воды, техническое обслуживание сетей газораспределения и газопотребления ГРУ котельной, ГРП водоподогревателей, газовая обвязка котельной , газовая обвязка водоподогревателей. Техническое обслуживание систем пожарной сигнализации  УКПГ и ДКС.","09.12.15","54 дня",0.6,0.9,null,null,"Пер1"]
["1","Служба подготовки газа",123,"09.12.15","54 дня",null,null,null,null,"Пер1"]
["1","Служба подготовки газа",5555,"21.12.15",555,null,null,null,null,"Пер1"]
["1","Служба подготовки газа",null,"10.12.15",9999,null,null,null,null,"Пер1"]
["1","Служба ЭВС","раапр","16.12.15","д",null,null,null,null,"Пер1"]
["1","Служба ЭВС","ddxzfzfg","29.12.15","sFdf",null,null,null,null,"Пер1"]
["1","Служба ЭВС","ddxzfzfgddd","29.12.15","sFdf",null,null,null,null,"Пер1"]
["1","Служба ЭВС","ddxzfzfgddd","14.12.15","sFdf",null,null,null,null,"Пер1"]
["1","Служба ЭВС","ddxzfzfgddd","03.12.15","sFdf",null,null,null,null,"Пер1"]
["1","Текущие работы"]
["1","Служба добычи газа",null,"2015-12-11",null,null,null,null,null,"Тек2"]
["1","Служба добычи газа",null,"15.12.15",null,null,null,null,null,"Тек2"]
["1","Служба добычи газа",8888,"29.12.15",888,null,null,null,null,"Тек2"]
["1","Служба добычи газа",66,"29.12.15",66,null,null,null,null,"Тек2"]
["1","Служба добычи газа","шесть","29.12.15",66,null,null,null,null,"Тек2"]
["1","Служба КИПиА",null,"2015-12-13",null,null,null,null,null,"Тек2"]
["1","Служба КИПиА",null,"2015-12-17",null,null,null,null,null,"Тек2"]
["1","Служба КИПиА",null,"15.12.15",null,null,null,null,null,"Тек2"]
["1","Служба КИПиА",null,"18.12.15",null,null,0.91,null,null,"Тек2"]
["1","Служба КИПиА",null,"14.12.15",null,null,null,null,null,"Тек2"]
["1","Служба КИПиА",null,"08.12.15",89,null,null,null,null,"Тек2"]
["1","Служба КИПиА",null,"15.12.15",22,null,null,null,null,"Тек2"]
["1","Служба механика",null,"2015-12-10",null,null,null,null,null,"Тек2"]
["1","Служба подготовки газа",null,"2015-12-14",null,null,null,null,null,"Тек2"]
["1","Служба подготовки газа","явпвп","18.12.15","выапЫ",null,null,null,null,"Тек2"]
["1","Служба подготовки газа","явпвп","18.12.15","выапЫ",null,null,null,null,"Тек2"]
["1","Служба ЭВС","раапр","2015-12-08","д",null,0.89,null,null,"Тек2"]
["1","Служба ЭВС","sfdg","18.12.15","dgf",null,null,null,null,"Тек2"]
[""]
[""]
[""]
[""]
[""]
[""]
[""]
[""]
[""]
[""]
[""]
[""]
[""]
[{"$f":"IF(B66=\"\",\"\",\"1\")","v":""}]
[""]
[""]
[""]
[""]
[""]
[""]
[""]
[""]
[""]
[""]
[""]
[""]
[""]
[""]
[""]
[""]
[""]
[""]
[""]
[""]
[""]
[""]
[""]
[""]
[""]
[""]
[""]
[""]
[""]
[""]
[""]
[""]
[""]
[""]

{"sheet":"Лист2","index":1,"n_rows":0,"n_cols":0,"rows_kept":0,"cut":false,"hidden":false,"merged":[]}

{"sheet":"Лист3","index":2,"n_rows":0,"n_cols":0,"rows_kept":0,"cut":false,"hidden":false,"merged":[]}